[Event "January 9 Early 2024"]
[Site "https://www.chess.com"]
[Date "2024.01.11"]
[Round "9"]
[White "Zou, Chen"]
[Black "Van Foreest, Jorden"]
[Result "0-1"]
[Board "52"]
[TimeControl "180+1"]
[WhiteFideId "8610959"]
[BlackFideId "1039784"]
[WhiteElo "2807"]
[BlackElo "3009"]
[WhiteTeam "CHN"]
[BlackTeam "NED"]
[WhiteClock "0:00:22"]
[BlackClock "0:01:29"]

1. Nf3 {[%clk 0:03:00]}  Nf6 {[%clk 0:02:54]} 2. e3 {[%clk 0:03:00]}  d5 {[%clk 0:02:54]} 3. d4 {[%clk 0:02:59]}  Bg4 {[%clk 0:02:48]} 4. Be2 {[%clk 0:02:59]}  e6 {[%clk 0:02:48]} 5. c4 {[%clk 0:02:57]}  Nbd7 {[%clk 0:02:45]} 6. Nc3 {[%clk 0:02:57]}  c6 {[%clk 0:02:43]} 7. b3 {[%clk 0:02:52]}  Bd6 {[%clk 0:02:43]} 8. Bb2 {[%clk 0:02:51]}  h5 {[%clk 0:02:44]} 9. h3 {[%clk 0:02:48]}  Bxf3 {[%clk 0:02:41]} 10. Bxf3 {[%clk 0:02:48]}  Qe7 {[%clk 0:02:42]} 11. Be2 {[%clk 0:02:36]}  Ba3 {[%clk 0:02:35]} 12. Qc1 {[%clk 0:02:32]}  Bxb2 {[%clk 0:02:29]} 13. Qxb2 {[%clk 0:02:33]}  O-O-O {[%clk 0:02:28]} 14. b4 {[%clk 0:02:21]}  dxc4 {[%clk 0:02:27]} 15. Bxc4 {[%clk 0:02:10]}  e5 {[%clk 0:02:27]} 16. O-O {[%clk 0:02:06]}  Nb6 {[%clk 0:02:28]} 17. dxe5 {[%clk 0:01:40]}  Qxe5 {[%clk 0:02:27]} 18. Qb3 {[%clk 0:01:29]}  Ng4 {[%clk 0:02:10]} 19. hxg4 {[%clk 0:01:21]}  hxg4 {[%clk 0:02:11]} 20. Rfd1 {[%clk 0:01:21]}  Qh2+ {[%clk 0:02:11]} 21. Kf1 {[%clk 0:01:21]}  Qh1+ {[%clk 0:02:12]} 22. Ke2 {[%clk 0:01:21]}  Qxg2 {[%clk 0:02:13]} 23. Bd3 {[%clk 0:01:03]}  Rh2 {[%clk 0:01:56]} 24. Rf1 {[%clk 0:00:52]}  Qf3+ {[%clk 0:01:56]} 25. Kd2 {[%clk 0:00:52]}  Rxf2+ {[%clk 0:01:49]} 26. Rxf2 {[%clk 0:00:53]}  Qxf2+ {[%clk 0:01:49]} 27. Ne2 {[%clk 0:00:53]}  Nd5 {[%clk 0:01:50]} 28. Re1 {[%clk 0:00:39]}  g3 {[%clk 0:01:42]} 29. Qc4 {[%clk 0:00:37]}  Qxe3+ {[%clk 0:01:37]} 30. Kc2 {[%clk 0:00:36]}  g2 {[%clk 0:01:33]} 31. Qg4+ {[%clk 0:00:35]}  Kb8 {[%clk 0:01:32]} 32. a3 {[%clk 0:00:33]}  Nxb4+ {[%clk 0:01:27]} 33. Qxb4 {[%clk 0:00:32]}  Qxd3+ {[%clk 0:01:27]} 34. Kb2 {[%clk 0:00:32]}  Qd2+ {[%clk 0:01:28]} 35. Kb3 {[%clk 0:00:29]}  Rd3+ {[%clk 0:01:27]} 36. Ka4 {[%clk 0:00:24]}  Qc2+ {[%clk 0:01:27]} 37. Ka5 {[%clk 0:00:23]}  b6+ {[%clk 0:01:28]} 38. Ka6 {[%clk 0:00:22]}  Qc4+ {[%clk 0:01:29]} 0-1

[Event "January 9 Early 2024"]
[Site "https://www.chess.com"]
[Date "2024.01.11"]
[Round "9"]
[White "Przybylski, Wojciech"]
[Black "Skliarov, Viktor"]
[Result "1-0"]
[Board "56"]
[TimeControl "180+1"]
[WhiteFideId "1117599"]
[BlackFideId "14106736"]
[WhiteElo "2563"]
[BlackElo "2664"]
[WhiteTeam "POL"]
[BlackTeam "UKR"]
[WhiteClock "0:01:02"]
[BlackClock "0:00:06"]

1. e4 {[%clk 0:02:59]}  c5 {[%clk 0:02:59]} 2. Nf3 {[%clk 0:02:59]}  Nc6 {[%clk 0:03:00]} 3. Bb5 {[%clk 0:02:56]}  e6 {[%clk 0:03:00]} 4. O-O {[%clk 0:02:54]}  Nge7 {[%clk 0:03:00]} 5. c3 {[%clk 0:02:54]}  a6 {[%clk 0:03:00]} 6. Bd3 {[%clk 0:02:53]}  d5 {[%clk 0:02:58]} 7. e5 {[%clk 0:02:53]}  d4 {[%clk 0:02:49]} 8. Re1 {[%clk 0:02:49]}  Ng6 {[%clk 0:02:42]} 9. cxd4 {[%clk 0:02:42]}  Nxd4 {[%clk 0:02:36]} 10. Be4 {[%clk 0:02:38]}  Be7 {[%clk 0:02:22]} 11. d3 {[%clk 0:02:35]}  Nxf3+ {[%clk 0:02:02]} 12. Bxf3 {[%clk 0:02:30]}  O-O {[%clk 0:02:02]} 13. Nc3 {[%clk 0:02:24]}  Qc7 {[%clk 0:01:59]} 14. Qe2 {[%clk 0:02:21]}  Bd7 {[%clk 0:01:56]} 15. g3 {[%clk 0:02:16]}  Rad8 {[%clk 0:01:49]} 16. h4 {[%clk 0:02:14]}  Rfe8 {[%clk 0:01:10]} 17. h5 {[%clk 0:02:11]}  Nf8 {[%clk 0:01:10]} 18. h6 {[%clk 0:02:11]}  g6 {[%clk 0:01:10]} 19. Bf4 {[%clk 0:02:06]}  Bc6 {[%clk 0:01:09]} 20. Ne4 {[%clk 0:02:06]}  Nd7 {[%clk 0:01:04]} 21. Nd6 {[%clk 0:01:51]}  Rf8 {[%clk 0:00:53]} 22. Rac1 {[%clk 0:01:29]}  b6 {[%clk 0:00:36]} 23. b4 {[%clk 0:01:14]}  Bxf3 {[%clk 0:00:25]} 24. Qxf3 {[%clk 0:01:14]}  f5 {[%clk 0:00:26]} 25. d4 {[%clk 0:01:07]}  g5 {[%clk 0:00:22]} 26. Qb3 {[%clk 0:01:03]}  gxf4 {[%clk 0:00:06]} 27. Qxe6+ {[%clk 0:01:02]}  Kh8 {[%clk 0:00:06]} 28. Qxe7 {[%clk 0:01:02]} 1-0

[Event "January 9 Early 2024"]
[Site "https://www.chess.com"]
[Date "2024.01.11"]
[Round "9"]
[White "Castellano, Christopher"]
[Black "Kruckenhauser, Arthur"]
[Result "1-0"]
[Board "60"]
[TimeControl "180+1"]
[WhiteFideId "5203651"]
[BlackFideId "1642812"]
[WhiteElo "2427"]
[BlackElo "2531"]
[WhiteTeam "PHI"]
[BlackTeam "AUT"]
[WhiteClock "0:01:07"]
[BlackClock "0:00:02"]

1. d4 {[%clk 0:02:56]}  Nf6 {[%clk 0:02:59]} 2. Bf4 {[%clk 0:02:56]}  c5 {[%clk 0:02:59]} 3. c3 {[%clk 0:02:56]}  cxd4 {[%clk 0:02:42]} 4. cxd4 {[%clk 0:02:55]}  Qb6 {[%clk 0:02:43]} 5. Nf3 {[%clk 0:02:54]}  Qxb2 {[%clk 0:02:34]} 6. Nbd2 {[%clk 0:02:53]}  Qb6 {[%clk 0:02:32]} 7. e4 {[%clk 0:02:50]}  g6 {[%clk 0:02:30]} 8. Bc4 {[%clk 0:02:48]}  Bg7 {[%clk 0:02:28]} 9. e5 {[%clk 0:02:47]}  Nh5 {[%clk 0:02:27]} 10. Be3 {[%clk 0:02:47]}  O-O {[%clk 0:02:23]} 11. O-O {[%clk 0:02:45]}  Qd8 {[%clk 0:02:08]} 12. d5 {[%clk 0:02:26]}  d6 {[%clk 0:02:06]} 13. e6 {[%clk 0:02:20]}  fxe6 {[%clk 0:02:05]} 14. dxe6 {[%clk 0:02:21]}  Nc6 {[%clk 0:02:01]} 15. Ne4 {[%clk 0:02:07]}  Ne5 {[%clk 0:01:46]} 16. Nxe5 {[%clk 0:02:05]}  Bxe5 {[%clk 0:01:46]} 17. Rc1 {[%clk 0:01:56]}  b6 {[%clk 0:01:27]} 18. Bd5 {[%clk 0:01:55]}  Rb8 {[%clk 0:01:27]} 19. Qd2 {[%clk 0:01:54]}  Ba6 {[%clk 0:01:24]} 20. f4 {[%clk 0:01:50]}  Bxf1 {[%clk 0:01:04]} 21. fxe5 {[%clk 0:01:50]}  dxe5 {[%clk 0:00:54]} 22. Rxf1 {[%clk 0:01:48]}  Rxf1+ {[%clk 0:00:46]} 23. Kxf1 {[%clk 0:01:49]}  Rc8 {[%clk 0:00:32]} 24. g4 {[%clk 0:01:41]}  Nf4 {[%clk 0:00:30]} 25. Bxf4 {[%clk 0:01:40]}  exf4 {[%clk 0:00:31]} 26. Nf6+ {[%clk 0:01:34]}  Kg7 {[%clk 0:00:09]} 27. Nd7 {[%clk 0:01:35]}  Qh8 {[%clk 0:00:06]} 28. Qxf4 {[%clk 0:01:33]}  Qg8 {[%clk 0:00:01]} 29. g5 {[%clk 0:01:22]}  Kh8 {[%clk 0:00:02]} 30. Kg2 {[%clk 0:01:12]}  Qg7 {[%clk 0:00:03]} 31. Nf6 {[%clk 0:01:10]}  Re8 {[%clk 0:00:02]} 32. Nxe8 {[%clk 0:01:09]}  Qb2+ {[%clk 0:00:02]} 33. Qf2 {[%clk 0:01:07]} 1-0

[Event "January 9 Early 2024"]
[Site "https://www.chess.com"]
[Date "2024.01.11"]
[Round "9"]
[White "Mesquita, Eduardo Barbosa"]
[Black "Fernandez Hernandez, Gerardo"]
[Result "1-0"]
[Board "66"]
[TimeControl "180+1"]
[WhiteFideId "22757163"]
[BlackFideId "2207400"]
[WhiteElo "2438"]
[BlackElo "2307"]
[WhiteTeam "BRA"]
[BlackTeam "ESP"]
[WhiteClock "0:00:57"]
[BlackClock "0:00:04"]

1. e4 {[%clk 0:03:00]}  e6 {[%clk 0:02:54]} 2. d4 {[%clk 0:02:56]}  d5 {[%clk 0:02:54]} 3. e5 {[%clk 0:02:57]}  c5 {[%clk 0:02:54]} 4. c3 {[%clk 0:02:57]}  Nc6 {[%clk 0:02:55]} 5. Nf3 {[%clk 0:02:57]}  Qb6 {[%clk 0:02:55]} 6. Bd3 {[%clk 0:02:57]}  Nh6 {[%clk 0:02:54]} 7. dxc5 {[%clk 0:02:57]}  Bxc5 {[%clk 0:02:52]} 8. O-O {[%clk 0:02:58]}  Ng4 {[%clk 0:02:25]} 9. Qe2 {[%clk 0:02:54]}  O-O {[%clk 0:02:24]} 10. Bxh7+ {[%clk 0:02:46]}  Kxh7 {[%clk 0:01:37]} 11. Ng5+ {[%clk 0:02:45]}  Kg6 {[%clk 0:01:38]} 12. Qxg4 {[%clk 0:02:38]}  Nxe5 {[%clk 0:01:24]} 13. Qg3 {[%clk 0:02:36]}  f6 {[%clk 0:01:21]} 14. Nxe6+ {[%clk 0:02:24]}  Kf7 {[%clk 0:01:10]} 15. Nxf8 {[%clk 0:02:22]}  Kxf8 {[%clk 0:01:07]} 16. b4 {[%clk 0:02:17]}  Bd6 {[%clk 0:01:00]} 17. Be3 {[%clk 0:02:18]}  Qc7 {[%clk 0:00:55]} 18. Qh4 {[%clk 0:02:10]}  Kg8 {[%clk 0:00:29]} 19. Kh1 {[%clk 0:02:00]}  Ng4 {[%clk 0:00:25]} 20. h3 {[%clk 0:01:48]}  Nxe3 {[%clk 0:00:20]} 21. fxe3 {[%clk 0:01:49]}  Be6 {[%clk 0:00:14]} 22. Qd4 {[%clk 0:01:40]}  Be5 {[%clk 0:00:13]} 23. Qd3 {[%clk 0:01:30]}  d4 {[%clk 0:00:11]} 24. cxd4 {[%clk 0:01:26]}  Bc4 {[%clk 0:00:11]} 25. Qf5 {[%clk 0:01:20]}  Bxf1 {[%clk 0:00:11]} 26. Qxf1 {[%clk 0:01:21]}  Bd6 {[%clk 0:00:08]} 27. Nd2 {[%clk 0:01:20]}  Bxb4 {[%clk 0:00:07]} 28. Ne4 {[%clk 0:01:17]}  Qe7 {[%clk 0:00:06]} 29. Rb1 {[%clk 0:01:05]}  Re8 {[%clk 0:00:04]} 30. Ng3 {[%clk 0:01:02]}  Bd6 {[%clk 0:00:03]} 31. Nf5 {[%clk 0:01:02]}  Qf8 {[%clk 0:00:04]} 32. Rxb7 {[%clk 0:00:57]} 1-0

[Event "January 9 Early 2024"]
[Site "https://www.chess.com"]
[Date "2024.01.11"]
[Round "9"]
[White "Shuvalov, Evgenij"]
[Black "Piesik, Piotr"]
[Result "0-1"]
[Board "68"]
[TimeControl "180+1"]
[WhiteFideId "4187237"]
[BlackFideId "1136194"]
[WhiteElo "2533"]
[BlackElo "2670"]
[WhiteTeam "FID"]
[BlackTeam "CZE"]
[WhiteClock "0:00:06"]
[BlackClock "0:01:05"]

1. d4 {[%clk 0:03:00]}  c5 {[%clk 0:02:57]} 2. d5 {[%clk 0:02:59]}  e5 {[%clk 0:02:56]} 3. dxe6 {[%clk 0:02:58]}  fxe6 {[%clk 0:02:56]} 4. e4 {[%clk 0:02:58]}  Nc6 {[%clk 0:02:57]} 5. Nc3 {[%clk 0:02:57]}  Nf6 {[%clk 0:02:56]} 6. Bd3 {[%clk 0:02:52]}  d5 {[%clk 0:02:56]} 7. exd5 {[%clk 0:02:51]}  exd5 {[%clk 0:02:57]} 8. Nf3 {[%clk 0:02:43]}  Be7 {[%clk 0:02:57]} 9. O-O {[%clk 0:02:41]}  O-O {[%clk 0:02:57]} 10. h3 {[%clk 0:02:38]}  Nb4 {[%clk 0:02:40]} 11. Be2 {[%clk 0:02:33]}  Bf5 {[%clk 0:02:40]} 12. Bd3 {[%clk 0:02:24]}  Nxd3 {[%clk 0:02:37]} 13. cxd3 {[%clk 0:02:25]}  d4 {[%clk 0:02:33]} 14. Ne2 {[%clk 0:02:09]}  Nd5 {[%clk 0:02:33]} 15. Qb3 {[%clk 0:02:03]}  Kh8 {[%clk 0:02:29]} 16. Ne5 {[%clk 0:01:48]}  Bf6 {[%clk 0:02:24]} 17. Nc4 {[%clk 0:01:40]}  Nb4 {[%clk 0:02:19]} 18. Nf4 {[%clk 0:01:38]}  b5 {[%clk 0:02:14]} 19. Nd2 {[%clk 0:01:24]}  Qb6 {[%clk 0:02:08]} 20. a3 {[%clk 0:01:20]}  Nxd3 {[%clk 0:02:05]} 21. Nxd3 {[%clk 0:01:17]}  c4 {[%clk 0:02:06]} 22. Nxc4 {[%clk 0:00:40]}  bxc4 {[%clk 0:02:05]} 23. Qxb6 {[%clk 0:00:41]}  axb6 {[%clk 0:02:04]} 24. Nb4 {[%clk 0:00:41]}  d3 {[%clk 0:01:55]} 25. Nd5 {[%clk 0:00:38]}  Bd4 {[%clk 0:01:54]} 26. Be3 {[%clk 0:00:35]}  Bxb2 {[%clk 0:01:54]} 27. Rab1 {[%clk 0:00:35]}  c3 {[%clk 0:01:49]} 28. Bd4 {[%clk 0:00:29]}  d2 {[%clk 0:01:45]} 29. Rxb2 {[%clk 0:00:17]}  cxb2 {[%clk 0:01:45]} 30. Bxb2 {[%clk 0:00:18]}  Rad8 {[%clk 0:01:31]} 31. Ne3 {[%clk 0:00:17]}  Bd3 {[%clk 0:01:30]} 32. Ra1 {[%clk 0:00:11]}  Be2 {[%clk 0:01:30]} 33. Nd1 {[%clk 0:00:11]}  Rfe8 {[%clk 0:01:29]} 34. Bc3 {[%clk 0:00:10]}  Rd3 {[%clk 0:01:23]} 35. Bb4 {[%clk 0:00:09]}  Rc8 {[%clk 0:01:06]} 36. Nb2 {[%clk 0:00:07]}  Rc1+ {[%clk 0:01:06]} 37. Kh2 {[%clk 0:00:05]}  Rxa1 {[%clk 0:01:05]} 38. Bxd2 {[%clk 0:00:06]}  Rxd2 {[%clk 0:01:05]} 0-1

[Event "January 9 Early 2024"]
[Site "https://www.chess.com"]
[Date "2024.01.11"]
[Round "9"]
[White "Dominguez Perez, Leinier"]
[Black "Nepomniachtchi, Ian"]
[Result "1-0"]
[Board "69"]
[TimeControl "180+1"]
[WhiteFideId "3503240"]
[BlackFideId "4168119"]
[WhiteElo "2994"]
[BlackElo "3114"]
[WhiteTeam "USA"]
[BlackTeam "RUS"]
[WhiteClock "0:00:41"]
[BlackClock "0:00:20"]

1. e4 {[%clk 0:03:00]}  e6 {[%clk 0:03:00]} 2. d4 {[%clk 0:03:00]}  d5 {[%clk 0:03:01]} 3. Nc3 {[%clk 0:03:00]}  Bb4 {[%clk 0:03:02]} 4. e5 {[%clk 0:03:01]}  c5 {[%clk 0:03:02]} 5. a3 {[%clk 0:03:01]}  Bxc3+ {[%clk 0:03:03]} 6. bxc3 {[%clk 0:03:02]}  Ne7 {[%clk 0:03:04]} 7. Qg4 {[%clk 0:03:01]}  Qc7 {[%clk 0:03:04]} 8. Bd3 {[%clk 0:03:02]}  cxd4 {[%clk 0:02:54]} 9. Ne2 {[%clk 0:02:56]}  dxc3 {[%clk 0:02:43]} 10. Qxg7 {[%clk 0:02:56]}  Rg8 {[%clk 0:02:44]} 11. Qxh7 {[%clk 0:02:56]}  Bd7 {[%clk 0:02:44]} 12. Bf4 {[%clk 0:02:36]}  Nbc6 {[%clk 0:02:43]} 13. O-O {[%clk 0:02:22]}  O-O-O {[%clk 0:02:39]} 14. Qxf7 {[%clk 0:02:15]}  Rdf8 {[%clk 0:02:37]} 15. Qh5 {[%clk 0:02:10]}  Rh8 {[%clk 0:02:37]} 16. Qf3 {[%clk 0:01:51]}  Nxe5 {[%clk 0:02:29]} 17. Qe3 {[%clk 0:01:50]}  N7c6 {[%clk 0:02:21]} 18. Bg3 {[%clk 0:01:36]}  Rfg8 {[%clk 0:02:16]} 19. Bb5 {[%clk 0:01:21]}  d4 {[%clk 0:00:48]} 20. Nxd4 {[%clk 0:01:07]}  Rxg3 {[%clk 0:00:47]} 21. fxg3 {[%clk 0:00:48]}  Ng4 {[%clk 0:00:26]} 22. Qxc3 {[%clk 0:00:48]}  Qb6 {[%clk 0:00:23]} 23. Bxc6 {[%clk 0:00:47]}  Bxc6 {[%clk 0:00:23]} 24. Rab1 {[%clk 0:00:46]}  Rxh2 {[%clk 0:00:22]} 25. Rf8+ {[%clk 0:00:41]}  Kd7 {[%clk 0:00:20]} 26. Rxb6 {[%clk 0:00:40]}  Rxg2+ {[%clk 0:00:20]} 27. Kf1 {[%clk 0:00:41]} 1-0

[Event "January 9 Early 2024"]
[Site "https://www.chess.com"]
[Date "2024.01.11"]
[Round "9"]
[White "Ljukin, Sergei"]
[Black "Kleibel, Uwe"]
[Result "0-1"]
[Board "72"]
[TimeControl "180+1"]
[WhiteFideId "14102200"]
[BlackFideId "1270982"]
[WhiteElo "2505"]
[BlackElo "2385"]
[WhiteTeam "UKR"]
[BlackTeam "GER"]
[WhiteClock "0:00:03"]
[BlackClock "0:01:05"]

1. e4 {[%clk 0:02:56]}  e5 {[%clk 0:02:59]} 2. Nf3 {[%clk 0:02:56]}  Nf6 {[%clk 0:02:59]} 3. Nxe5 {[%clk 0:02:56]}  Nxe4 {[%clk 0:02:59]} 4. Qe2 {[%clk 0:02:55]}  Qe7 {[%clk 0:02:59]} 5. Qxe4 {[%clk 0:02:55]}  d6 {[%clk 0:02:59]} 6. f4 {[%clk 0:02:55]}  dxe5 {[%clk 0:02:58]} 7. fxe5 {[%clk 0:02:55]}  Nc6 {[%clk 0:02:59]} 8. Bb5 {[%clk 0:02:43]}  Bd7 {[%clk 0:02:58]} 9. d4 {[%clk 0:02:40]}  f5 {[%clk 0:02:44]} 10. Qf4 {[%clk 0:01:44]}  Nxe5 {[%clk 0:02:14]} 11. Bxd7+ {[%clk 0:01:31]}  Nxd7+ {[%clk 0:02:15]} 12. Qe3 {[%clk 0:01:32]}  O-O-O {[%clk 0:02:12]} 13. O-O {[%clk 0:01:30]}  g6 {[%clk 0:02:06]} 14. c3 {[%clk 0:01:10]}  Nb6 {[%clk 0:02:05]} 15. Qg3 {[%clk 0:00:55]}  Re8 {[%clk 0:01:50]} 16. Bg5 {[%clk 0:00:34]}  Qd7 {[%clk 0:01:50]} 17. Nd2 {[%clk 0:00:31]}  Nd5 {[%clk 0:01:43]} 18. Nc4 {[%clk 0:00:20]}  Bg7 {[%clk 0:01:41]} 19. Rae1 {[%clk 0:00:18]}  h6 {[%clk 0:01:39]} 20. Bd2 {[%clk 0:00:17]}  g5 {[%clk 0:01:37]} 21. Ne5 {[%clk 0:00:17]}  Bxe5 {[%clk 0:01:35]} 22. Rxe5 {[%clk 0:00:17]}  f4 {[%clk 0:01:34]} 23. Qe1 {[%clk 0:00:17]}  Rxe5 {[%clk 0:01:33]} 24. dxe5 {[%clk 0:00:15]}  Re8 {[%clk 0:01:34]} 25. Qe2 {[%clk 0:00:11]}  Qf5 {[%clk 0:01:23]} 26. Re1 {[%clk 0:00:11]}  c6 {[%clk 0:01:21]} 27. c4 {[%clk 0:00:10]}  Nc7 {[%clk 0:01:19]} 28. Bc3 {[%clk 0:00:09]}  Ne6 {[%clk 0:01:19]} 29. b4 {[%clk 0:00:08]}  g4 {[%clk 0:01:19]} 30. Rf1 {[%clk 0:00:07]}  Rf8 {[%clk 0:01:15]} 31. Qd2 {[%clk 0:00:04]}  f3 {[%clk 0:01:12]} 32. g3 {[%clk 0:00:04]}  Rd8 {[%clk 0:01:10]} 33. Qxh6 {[%clk 0:00:04]}  Ng5 {[%clk 0:01:08]} 34. Qf6 {[%clk 0:00:04]}  Nh3+ {[%clk 0:01:04]} 35. Kh1 {[%clk 0:00:03]}  Qc2 {[%clk 0:01:05]} 0-1

[Event "January 9 Early 2024"]
[Site "https://www.chess.com"]
[Date "2024.01.11"]
[Round "9"]
[White "Ashraf, Artin"]
[Black "Plyasunov, Daniil"]
[Result "1-0"]
[Board "74"]
[TimeControl "180+1"]
[WhiteFideId "22514805"]
[BlackFideId "44133839"]
[WhiteElo "2909"]
[BlackElo "2746"]
[WhiteTeam "IRI"]
[BlackTeam "RUS"]
[WhiteClock "0:00:08"]
[BlackClock "0:01:13"]

1. d4 {[%clk 0:03:00]}  Nf6 {[%clk 0:02:57]} 2. c4 {[%clk 0:03:00]}  e6 {[%clk 0:02:58]} 3. Nc3 {[%clk 0:02:59]}  Bb4 {[%clk 0:02:57]} 4. e3 {[%clk 0:02:59]}  O-O {[%clk 0:02:57]} 5. Bd3 {[%clk 0:02:55]}  Re8 {[%clk 0:02:56]} 6. Ne2 {[%clk 0:02:44]}  d5 {[%clk 0:02:56]} 7. O-O {[%clk 0:02:43]}  c6 {[%clk 0:02:48]} 8. Ng3 {[%clk 0:02:30]}  Nbd7 {[%clk 0:02:45]} 9. Bd2 {[%clk 0:02:29]}  Bf8 {[%clk 0:02:42]} 10. Qc2 {[%clk 0:02:24]}  h6 {[%clk 0:02:35]} 11. Rad1 {[%clk 0:02:17]}  dxc4 {[%clk 0:02:12]} 12. Bxc4 {[%clk 0:02:17]}  e5 {[%clk 0:02:12]} 13. Qb3 {[%clk 0:01:41]}  Nd5 {[%clk 0:01:56]} 14. Nxd5 {[%clk 0:01:12]}  cxd5 {[%clk 0:01:57]} 15. Bxd5 {[%clk 0:01:12]}  Qf6 {[%clk 0:01:57]} 16. Bc3 {[%clk 0:01:07]}  Qg6 {[%clk 0:01:55]} 17. Be4 {[%clk 0:01:00]}  Qf6 {[%clk 0:01:52]} 18. dxe5 {[%clk 0:00:58]}  Qe7 {[%clk 0:01:47]} 19. Nf5 {[%clk 0:00:49]}  Qg5 {[%clk 0:01:46]} 20. f4 {[%clk 0:00:47]}  Qh5 {[%clk 0:01:45]} 21. Ng3 {[%clk 0:00:35]}  Qh4 {[%clk 0:01:41]} 22. Bd5 {[%clk 0:00:35]}  Nc5 {[%clk 0:01:35]} 23. Bxf7+ {[%clk 0:00:34]}  Kh8 {[%clk 0:01:35]} 24. Qc2 {[%clk 0:00:30]}  Bg4 {[%clk 0:01:33]} 25. Bxe8 {[%clk 0:00:28]}  Bxd1 {[%clk 0:01:32]} 26. Rxd1 {[%clk 0:00:29]}  Rxe8 {[%clk 0:01:33]} 27. Qg6 {[%clk 0:00:30]}  Rd8 {[%clk 0:01:31]} 28. Rd4 {[%clk 0:00:23]}  Rxd4 {[%clk 0:01:26]} 29. Bxd4 {[%clk 0:00:24]}  Nd7 {[%clk 0:01:18]} 30. e6 {[%clk 0:00:20]}  Nf6 {[%clk 0:01:17]} 31. Bxf6 {[%clk 0:00:19]}  gxf6 {[%clk 0:01:18]} 32. Qe8 {[%clk 0:00:12]}  Qg4 {[%clk 0:01:08]} 33. Qxf8+ {[%clk 0:00:12]}  Kh7 {[%clk 0:01:09]} 34. Qf7+ {[%clk 0:00:11]}  Kh8 {[%clk 0:01:10]} 35. Qxf6+ {[%clk 0:00:11]}  Kh7 {[%clk 0:01:11]} 36. Qf7+ {[%clk 0:00:11]}  Kh8 {[%clk 0:01:11]} 37. e7 {[%clk 0:00:10]}  Qd1+ {[%clk 0:01:11]} 38. Kf2 {[%clk 0:00:07]}  Qd7 {[%clk 0:01:12]} 39. e8=Q+ {[%clk 0:00:07]}  Qxe8 {[%clk 0:01:12]} 40. Qxe8+ {[%clk 0:00:08]}  Kg7 {[%clk 0:01:13]} 41. Nh5+ {[%clk 0:00:08]} 1-0

[Event "January 9 Early 2024"]
[Site "https://www.chess.com"]
[Date "2024.01.11"]
[Round "9"]
[White "Jimenez Almeida, Luis David"]
[Black "Timerkhanov, Alexander"]
[Result "0-1"]
[Board "75"]
[TimeControl "180+1"]
[WhiteFideId "22242244"]
[BlackFideId "24177938"]
[WhiteElo "2520"]
[BlackElo "2665"]
[WhiteTeam "ESP"]
[BlackTeam "RUS"]
[WhiteClock "0:00:20"]
[BlackClock "0:00:42"]

1. e4 {[%clk 0:03:00]}  c5 {[%clk 0:02:59]} 2. Nc3 {[%clk 0:03:00]}  a6 {[%clk 0:02:54]} 3. g3 {[%clk 0:03:00]}  b5 {[%clk 0:02:54]} 4. Bg2 {[%clk 0:03:00]}  Bb7 {[%clk 0:02:55]} 5. Nge2 {[%clk 0:03:00]}  e6 {[%clk 0:02:54]} 6. d4 {[%clk 0:03:00]}  cxd4 {[%clk 0:02:53]} 7. Nxd4 {[%clk 0:03:01]}  Nf6 {[%clk 0:02:53]} 8. Qd3 {[%clk 0:02:56]}  d6 {[%clk 0:02:52]} 9. a4 {[%clk 0:02:52]}  b4 {[%clk 0:02:51]} 10. Na2 {[%clk 0:02:51]}  d5 {[%clk 0:02:50]} 11. e5 {[%clk 0:02:31]}  Nfd7 {[%clk 0:02:48]} 12. f4 {[%clk 0:02:30]}  Nc6 {[%clk 0:02:46]} 13. Be3 {[%clk 0:02:29]}  Nc5 {[%clk 0:02:39]} 14. Qd2 {[%clk 0:02:24]}  a5 {[%clk 0:02:22]} 15. O-O {[%clk 0:02:00]}  Nxa4 {[%clk 0:02:19]} 16. c4 {[%clk 0:01:44]}  Nxd4 {[%clk 0:02:13]} 17. Bxd4 {[%clk 0:01:40]}  Bc5 {[%clk 0:02:12]} 18. Rad1 {[%clk 0:01:33]}  Qb6 {[%clk 0:01:47]} 19. b3 {[%clk 0:01:28]}  Bxd4+ {[%clk 0:01:47]} 20. Qxd4 {[%clk 0:01:28]}  Qxd4+ {[%clk 0:01:46]} 21. Rxd4 {[%clk 0:01:29]}  Nc5 {[%clk 0:01:46]} 22. cxd5 {[%clk 0:01:18]}  Nxb3 {[%clk 0:01:44]} 23. Rdd1 {[%clk 0:01:06]}  Bxd5 {[%clk 0:01:40]} 24. Bxd5 {[%clk 0:01:07]}  exd5 {[%clk 0:01:40]} 25. Rxd5 {[%clk 0:01:08]}  O-O {[%clk 0:01:40]} 26. Rf3 {[%clk 0:01:04]}  Na1 {[%clk 0:01:30]} 27. Rd1 {[%clk 0:00:56]}  Nc2 {[%clk 0:01:30]} 28. Kf2 {[%clk 0:00:52]}  a4 {[%clk 0:01:28]} 29. Rd2 {[%clk 0:00:44]}  b3 {[%clk 0:01:25]} 30. Nc3 {[%clk 0:00:44]}  Rfc8 {[%clk 0:01:23]} 31. Nxa4 {[%clk 0:00:43]}  Rxa4 {[%clk 0:01:02]} 32. Rxb3 {[%clk 0:00:43]}  Nd4 {[%clk 0:00:51]} 33. Rbd3 {[%clk 0:00:36]}  Rcc4 {[%clk 0:00:50]} 34. Rb2 {[%clk 0:00:26]}  g6 {[%clk 0:00:48]} 35. h4 {[%clk 0:00:25]}  h5 {[%clk 0:00:47]} 36. Rb7 {[%clk 0:00:24]}  Rc2+ {[%clk 0:00:44]} 37. Ke1 {[%clk 0:00:20]}  Ra1+ {[%clk 0:00:42]} 0-1